Cogmind - Beta 14 @@@ ROGUE MODE // 2024.10.30 @ 04:16:16 Player: Bingus Khan Result: Self-destructed Performance ------------- Evolutions (1) 500 Regions Visited (4) 800 Robots Destroyed (11) 55 Value Destroyed (299) 299 Prototype IDs (0) 0 Alien Tech Used (0) 0 Bonus (0) 0 TOTAL SCORE: 1654 Bonus ------- None Cogmind --------- Core Integrity 368/400 Matter 300/300 Energy 160/160 System Corruption 0% Temperature Cool (0) Movement Hovering (116) Ox1 Location -9/Storage Parts ------- > --- POWER (1) -------- Light Nuclear Core > --- PROPULSION (3) --- Hover Unit Hover Unit > --- UTILITY (3) ------ Small Storage Unit Signal Interpreter Improved Utility Shielding > --- WEAPON (2) ------- Beam Rifle Light Assault Rifle > --- INVENTORY (8) ---- Light Nuclear Core Light Nuclear Core Titanium Leg Titanium Leg Titanium Leg Improved Utility Shielding Light Assault Rifle Improved Grenade Launcher Peak State ------------ > --- POWER ------------ Light Nuclear Core > --- PROPULSION ------- Hover Unit Hover Unit Hover Unit > --- UTILITY ---------- Heat Sink Small Storage Unit Improved Utility Shielding > --- WEAPON ----------- Assault Rifle Light Assault Rifle > --- INVENTORY -------- Light Nuclear Core Light Nuclear Core Titanium Leg Titanium Leg Titanium Leg Titanium Leg Light Assault Rifle Improved Grenade Launcher [Rating: 15] Favorites ----------- Power Light Nuclear Core Engine Light Ion Engine Power Core Light Nuclear Core Propulsion Hover Unit Leg Aluminum Leg Hover Unit Hover Unit Utility Small Storage Unit Device Heat Sink Storage Small Storage Unit Processor Signal Interpreter Protection Improved Utility Shielding Weapon Light Assault Rifle Energy Gun Beam Rifle Ballistic Gun Light Assault Rifle Build | -11 -10 -10 -9 -9 ------- Run | Yrd Mat Min Mat Sto Slots Evolved 2 | . . . 2 . Power . | . . . . . Propulsion 1 | . . . 1 . Utility 1 | . . . 1 . Weapon . | . . . . . Parts Attached 20 | 7 5 2 3 3 Power 4 | 2 1 . 1 . Engine 3 | 2 1 . . . Core 1 | . . . 1 . Reactor . | . . . . . Propulsion 8 | 2 3 1 1 1 Treads . | . . . . . Leg 3 | 2 1 . . . Wheel . | . . . . . Hover 5 | . 2 1 1 1 Flight . | . . . . . Utility 5 | 1 1 1 1 1 Device 2 | . 1 1 . . Storage 1 | 1 . . . . Processor 1 | . . . . 1 Hackware . | . . . . . Protection 1 | . . . 1 . Artifact . | . . . . . Weapon 3 | 2 . . . 1 Energy Gun 1 | . . . . 1 Energy Cannon . | . . . . . Ballistic Gun 2 | 2 . . . . Ballistic Cannon . | . . . . . Launcher . | . . . . . Special Weapon . | . . . . . Impact Weapon . | . . . . . Slashing Weapon . | . . . . . Piercing Weapon . | . . . . . Special Melee Weapon . | . . . . . Unidentified Prototypes . | . . . . . Parts Lost 3 | . . 1 . 2 Power . | . . . . . Propulsion 1 | . . . . 1 Utility 1 | . . 1 . . Weapon 1 | . . . . 1 Highest Loss Streak 2 | . . 1 . 2 To Critical Strikes . | . . . . . Average Slot Usage (%) 95 | . 92 98 91 98 Engine 6 | . 14 14 . . Core 5 | . . . 10 11 Leg 4 | . 21 . . . Hover 25 | . 5 28 33 32 Device 8 | . 8 12 11 4 Storage 12 | . 14 14 11 11 Processor 1 | . . . . 6 Protection 4 | . . . 3 11 Ballistic Gun 24 | . 28 28 22 20 Peak Build Rating 15 | 6 7 7 15 15 Average Rating 9 | 5 6 6 11 14 On Entrance 7 | . 6 7 7 15 Naked Turns . | . . . . . Heaviest Build 16 | 13 14 12 16 16 Greatest Support 20 | 20 20 12 18 18 Greatest Overweight (x) 2 | . 2 . . 1 Average Overweight (x) . | . . . . . Largest Inventory Capacity 8 | 8 8 8 8 8 Average Capacity 7 | 7 8 8 8 8 Most Carried 8 | 4 8 8 8 8 Average Carried 6 | 1 5 7 7 8 Final Capacity 8 | 8 8 8 8 8 Final Carried 8 | 4 8 8 8 8 Class Distribution -------------------- 100% | Mutant Dominant Class ---------------- Mutant | -10/Materials Mutant | -10/Mines Mutant | -9/Materials Mutant | -9/Storage Resources | -11 -10 -10 -9 -9 ----------- Run | Yrd Mat Min Mat Sto Matter Collected 499 | 262 91 36 . 110 Remotely 98 | . 91 7 . . Salvage Created 370 | . 91 33 . 246 Parts 28 | . 4 5 . 19 Haulers Intercepted . | . . . . . Recyclers Shooed . | . . . . . Parts Field Recycled . | . . . . . Retrieved Matter . | . . . . . Parts Self-Destructed . | . . . . . Prevented . | . . . . . Kills | -11 -10 -10 -9 -9 ------- Run | Yrd Mat Min Mat Sto Combat Hostiles Destroyed 9 | . 2 3 . 4 Guns 9 | . 2 3 . 4 Classes Destroyed 5 | . 1 1 . 3 Operator 1 | . . . . 1 Watcher 1 | . . . . 1 Swarmer 3 | . . 3 . . Grunt 3 | . 2 . . 1 Sentry 3 | . . . . 3 Best Kill Streak 3 | . 2 2 . 3 Combat Bots Only 3 | . 2 2 . 3 Max Kills in Single Turn 1 | . 1 1 . 1 Gunslinging . | . . . . . Exploded . | . . . . . Melee . | . . . . . Uniques/NPCs Destroyed . | . . . . . Combat | -11 -10 -10 -9 -9 -------- Run | Yrd Mat Min Mat Sto Hostile Shots Fired 76 | . 25 30 . 21 Missed 29 | . 7 15 . 7 Damage Taken 562 | . 195 162 . 205 Core 102 | . 10 60 . 32 Absorbed by Shields . | . . . . . Redirected to Shielding 17 | . . . . 17 Core Remaining (%) 86 | 100 . 72 . . Volleys Fired 33 | . 10 6 . 17 Largest 2 | . 2 2 . 2 Hottest 40 | . 40 40 . 40 Shots Fired 60 | . 20 12 . 28 Gun 60 | . 20 12 . 28 Cannon . | . . . . . Launcher . | . . . . . Special . | . . . . . Kinetic 60 | . 20 12 . 28 Thermal . | . . . . . Explosive . | . . . . . Electromagnetic . | . . . . . Robot Hit Streak 13 | . 4 5 . 13 Robot Miss Streak 5 | . 5 2 . 2 Penetration Max . | . . . . . Secondary Targets 1 | . . . . 1 Max Gunslinging Chain 1 | . . . . 1 Shots Hit Robots 36 | . 10 5 . 21 Core Hits 20 | . 4 3 . 13 Critical Kills . | . . . . . Critical Parts Destroyed . | . . . . . Critical Strikes . | . . . . . Melee Attacks . | . . . . . Impact . | . . . . . Slashing . | . . . . . Piercing . | . . . . . Sneak Attacks . | . . . . . Combat Hostiles . | . . . . . Follow-up Attacks . | . . . . . Damage Inflicted 364 | . 119 57 . 188 Guns 364 | . 119 57 . 188 Cannons . | . . . . . Explosions . | . . . . . Melee . | . . . . . Ramming . | . . . . . Kinetic 364 | . 119 57 . 188 Thermal . | . . . . . Explosive . | . . . . . Electromagnetic . | . . . . . Impact . | . . . . . Slashing . | . . . . . Piercing . | . . . . . Highest Corruption . | . . . . . Average Corruption . | . . . . . Corruption Purged . | . . . . . Corruption Blocked . | . . . . . Overload Shots . | . . . . . Overflow Damage . | . . . . . Projectiles . | . . . . . Explosions . | . . . . . Melee . | . . . . . Knockbacks . | . . . . . Impact . | . . . . . Kinetic . | . . . . . Secondary . | . . . . . Self-Inflicted Damage . | . . . . . Shots . | . . . . . Rammed . | . . . . . Targets Rammed . | . . . . . Kicked . | . . . . . Crushed . | . . . . . Highest Temperature 24 | . 24 4 . 15 Average Temperature 5 | . 8 3 . 5 Received Heat Transfer 228 | . 102 36 . 90 Siege Activations . | . . . . . Robots Corrupted . | . . . . . Combat Hostiles . | . . . . . Parts Fried . | . . . . . Impact Corruptions . | . . . . . Robots Melted . | . . . . . Combat Hostiles . | . . . . . Parts Melted . | . . . . . Heat Transferred . | . . . . . Parts Sabotaged . | . . . . . Parts Stolen . | . . . . . Parts Stripped . | . . . . . Power Chain Reactions . | . . . . . Alert | -11 -10 -10 -9 -9 ------- Run | Yrd Mat Min Mat Sto Peak Influence 278 | . 91 140 54 278 Initial 54 | . . 35 54 22 Average 81 | . 37 103 54 146 Maximum Alert Level 1 | . . . . 1 Low Security (%) 89 | 100 100 100 100 60 Level 1 10 | . . . . 39 Level 2 . | . . . . . Level 3 . | . . . . . Level 4 . | . . . . . Level 5 . | . . . . . High Security . | . . . . . Max Security . | . . . . . Squads Dispatched 2 | . 1 . 1 . Investigation 2 | . 1 . 1 . Extermination . | . . . . . Reinforcement . | . . . . . Assault . | . . . . . Garrison . | . . . . . Intercept . | . . . . . Searches Triggered . | . . . . . Construction Impeded . | . . . . . Haulers Reinforced . | . . . . . Active Scanning Responses . | . . . . . Cargo Convoy Interrupts . | . . . . . Stealth | -11 -10 -10 -9 -9 --------- Run | Yrd Mat Min Mat Sto Distress Signals 1 | . 1 . . . Communications Jammed . | . . . . . Distress Signals . | . . . . . Times Spotted 23 | . 7 7 1 8 Peak Tracking Total 4 | . 4 4 1 3 Tactical Retreats 2 | . . 1 . 1 Traps | -11 -10 -10 -9 -9 ------- Run | Yrd Mat Min Mat Sto Traps Triggered . | . . . . . Indirectly . | . . . . . Trap Hack Attempts . | . . . . . Triggered . | . . . . . Disarmed . | . . . . . Reprogrammed . | . . . . . Reused . | . . . . . Traps Extracted . | . . . . . Installed . | . . . . . Triggered . | . . . . . Machines | -11 -10 -10 -9 -9 ---------- Run | Yrd Mat Min Mat Sto Machines Disabled . | . . . . . Max in Single Turn . | . . . . . Machines Repaired . | . . . . . Machines Dismantled . | . . . . . Machines Sabotaged . | . . . . . Overloaded Fab Kills . | . . . . . Hacking | -11 -10 -10 -9 -9 --------- Run | Yrd Mat Min Mat Sto Machines Accessed 4 | . 1 . 1 2 Terminals 3 | . 1 . . 2 Fabricators . | . . . . . Repair Stations . | . . . . . Recycling Units . | . . . . . Scanalyzers 1 | . . . 1 . Garrison Access . | . . . . . Total Hacks 15 | . 4 . 4 7 Successful 9 | . 2 . 4 3 Failed 6 | . 2 . . 4 Catastrophic 3 | . 1 . . 2 Database Lockouts . | . . . . . Manual 4 | . 3 . . 1 Terminals 11 | . 4 . . 7 Fabricators . | . . . . . Repair Stations . | . . . . . Recycling Units . | . . . . . Scanalyzers 4 | . . . 4 . Garrison Access . | . . . . . Terminal Hacks 5 | . 2 . . 3 Record 1 | . . . . 1 Investigation Status 1 | . 1 . . . Reinforcement Status 1 | . . . . 1 Hauler Manifests 1 | . . . . 1 Zone Layout 1 | . 1 . . . Fabricator Hacks . | . . . . . Repair Station Hacks . | . . . . . Recycling Unit Hacks . | . . . . . Scanalyzer 4 | . . . 4 . Insert Component 2 | . . . 2 . Analyze 2 | . . . 2 . Garrison Access Hacks . | . . . . . Unauthorized Hacks . | . . . . . Terminals . | . . . . . Fabricators . | . . . . . Repair Stations . | . . . . . Recycling Units . | . . . . . Scanalyzers . | . . . . . Garrison Access . | . . . . . Data Cores Recovered 1 | . . . . 1 Used . | . . . . . Hacking Detections 4 | . 1 . 1 2 Full Trace Events 2 | . 1 . 1 . Feedback Events . | . . . . . Feedback Blocked . | . . . . . Robot Schematics Acquired . | . . . . . Robots Built . | . . . . . Authchips . | . . . . . Time . | . . . . . Total Robot Build Rating . | . . . . . Part Schematics Acquired 1 | . . . 1 . Parts Built . | . . . . . Authchips . | . . . . . Time . | . . . . . Total Part Build Rating . | . . . . . Parts Repaired . | . . . . . Time . | . . . . . Parts Recycled . | . . . . . Recycled Matter . | . . . . . Retrieved Matter . | . . . . . Retrieved Components . | . . . . . Parts Scanalyzed 2 | . . . 2 . Part Schematics Acquired 1 | . . . 1 . Parts Damaged . | . . . . . Bothacking | -11 -10 -10 -9 -9 ------------ Run | Yrd Mat Min Mat Sto Used RIF Installer . | . . . . . Robots Hacked . | . . . . . Non-combat . | . . . . . Combat . | . . . . . Robot Hacks Applied . | . . . . . Relay Couplers Released . | . . . . . Fabnet Peak Effective % . | . . . . . Robots Rewired . | . . . . . Allies Hacked . | . . . . . Hacks Repelled . | . . . . . Allies | -11 -10 -10 -9 -9 -------- Run | Yrd Mat Min Mat Sto Total Allies . | . . . . . Largest Group . | . . . . . Highest-Rated Group . | . . . . . Highest-Rated Ally . | . . . . . Total Orders . | . . . . . Ally Attacks . | . . . . . Total Damage . | . . . . . Kills . | . . . . . Allies Corrupted . | . . . . . Allies Melted . | . . . . . Intel | -11 -10 -10 -9 -9 ------- Run | Yrd Mat Min Mat Sto Robot Analysis Total . | . . . . . Derelict Logs Recovered 1 | . . 1 . . Drone Launches . | . . . . . Drone Recoveries . | . . . . . Exploration | -11 -10 -10 -9 -9 ------------- Run | Yrd Mat Min Mat Sto Turns Passed 655 | 77 121 146 131 180 Spaces Moved 713 | 57 86 203 117 250 Core 6 | 6 . . . . Treads . | . . . . . Legs 96 | 51 45 . . . Wheels . | . . . . . Hover 611 | . 41 203 117 250 Flight . | . . . . . Fastest Speed 50 | 50 56 56 52 52 Average Speed 63 | 112 90 56 52 53 Slowest Speed 180 | 120 180 56 52 116 Overloaded Moves . | . . . . . Propulsion Burnouts . | . . . . . Robots Hopped . | . . . . . Cave-ins Triggered . | . . . . . Exploration Rate (%) 23 | 5 16 44 11 39 Regions Visited 4 Branch Regions 2 Pre-discovered Areas 1 | . . 1 . . Known Exits Taken . | . . . . . Unknown Exits Taken 4 | 1 1 1 1 . Scrap Searched 1 | . . 1 . . Spaces Dug . | . . . . . Terrain Destroyed . | . . . . . Melee . | . . . . . Projectile . | . . . . . AOE . | . . . . . Terrain Rammed . | . . . . . Walls Destroyed . | . . . . . Machines Disabled . | . . . . . Actions | -11 -10 -10 -9 -9 --------- Run | Yrd Mat Min Mat Sto Total 861 | 66 109 224 190 272 Wait 68 | . 3 10 55 . Move 709 | 56 85 202 116 250 Hop . | . . . . . Pick Up 16 | 3 3 2 8 . Fast Attach 13 | 6 3 1 1 2 Attach 2 | . 1 . 1 . Detach 1 | . 1 . . . Swap 5 | 1 1 1 1 1 Drop 14 | . 2 2 8 2 Fire 33 | . 10 6 . 17 Melee . | . . . . . Ram . | . . . . . Kick . | . . . . . Crush . | . . . . . Escape Stasis . | . . . . . Rewire . | . . . . . Trap . | . . . . . Miscellaneous . | . . . . . Route ------- -11/Scrapyard -10/Materials -10/Mines -9/Materials -9/Storage History --------- Turn | Location | Event 4 | -11/Scrapyard | Discovered new exit (range 15) 78 | -11/Scrapyard | Entered Materials 96 | -10/Materials | Discovered new exit (range 15) 199 | -10/Materials | Entered Mines 314 | -10/Mines | Build established: Mutant 344 | -10/Mines | Discovered new exit (range 4) 345 | -10/Mines | Entered Materials 345 | -9/Materials | Evolved 2 slots: Propulsion x1, Utility x1 418 | -9/Materials | Discovered new exit (range 8) 476 | -9/Materials | Entered Storage 656 | -9/Storage | Self-destructed Last Messages --------------- 4x Imp. EM Shotgun (1 escort) 00574_ G-34 Mercenary destroyed. 00578_ K-01 Serf collects debris. 00585_ Y-45 Defender destroyed. 00585_ Switching to secondary target: Y-45 Defender. 00586_ K-01 Serf collects debris. 00587_ Transport Mainframe disabled. 00590_ K-01 Serf collects debris. 00591_ Y-45 Defender destroyed. 00594_ K-01 Serf collects debris. 00596_ Acquired 50 matter. 00598_ K-01 Serf collects debris. 00638_ Assault Rifle destroyed. 00640_ Critical hit (Burn: +37). 00646_ Hover Unit destroyed. 00648_ Y-45 Defender destroyed. 00653_ Acquired Beam Rifle. 00654_ Acquired 21 matter. Map ----- +----------------------------------------------------+ | ?# #?# #??# # # | | ?# #?# """" #??# # """ # | | ## #?# "??" #??# # """ # | | #?# "??" #??# # """ # | | ## #?# "??" #??# # # | | ?# #?# "??" #??# # """ # | | ?# #?# """" #??# # """ # | | ?# #?# #??# # """ # | | ## #######+##+##??# # # | | #??# + # | | #??# # !# | | #??# # # | | ############ #??# ####### | | ???????????# #??# # # | | ???????????# #??# # # | | ???????????#* #??# # """ # | | ???????????# #??# # """ # | | ???????????# #??# # """ # | | ???????????# #??# # # | | ???????????# #??# + """ # | | ???????????# #??# # """ # | | ?????#+##+## #??# # """ # | | ?????#^ #??# # # | | ?????# #??# # = # | | ?????# ^ ##?#^^^# =! # | | ?????#^ ^ "#?# ###@### | | ?????# T#?# #?###?? | | ?????# "#?# #?????? | | ?????+ #### #?????? | | ?????# ]!] #?????? | | ?????# ]! #### #?????? | | ?????# !] #??# #?????? | | ????# #####+##??# ####### | | ????+ ??????????# # # | | ????# ???????????# #"" # | | ????## ???????????# #"" # | | ??????????????????# #"T # | | ??????????????????# #"" # | | ??????????????????# #"" # | | ??????????????????# + # | | ??????????????????# # """ # | | ??????????????????# # """ # | | ??????????????????# # """ # | | ??????????????????# # # | | ??????????????????# # # | | ??????????????????########### | | ????????????????????????????? | | ????????????????????????????? | | ????????????????????????????? | | ????????????????????????????? | +----------------------------------------------------+ Best States ------------- Heat Dissipation 38 Energy Generation 14 Energy Capacity 250 Matter Stores 300 Matter Capacity 300 Sight Range 16 Terrain Scan Density 10 Utility Shielding 66 Evasion (%) 55 Item Schematics ----------------- Lgt. Assault Rifle | -9/Materials | Scanalyzed Robot Schematics ------------------ None Fabricated ------------ Nothing Alien Tech Used ----------------- None Achievements -------------- None Challenges ------------ None Game ------ Seed CorruptionTransportArchive Manual? 0 Play Time 00:14:49 Cumulative 7.7 hours Start 2024.09.25 @ 23:58:15 End 2024.10.30 @ 04:16:16 Sessions 3 Manual Loads 0 Difficulty Rogue Special Mode None Game No. 20 Rogue 15 Adventurer 5 Explorer 0 Win Type - Total 0 Types 0/0/0/0/0/0/0/0/0 Lore% 2 Gallery% 14 Achievement% 11 Wizard Run 0 Options --------- Layout 1 ASCII 0 Keyboard 0 Movement Mouse Keybinds 0 Fullscreen 1 Font 24/Smallcaps Map View 50x35 Zoom Use 0% Tactical HUD 1 Map Filters NONE Filters NONE Steam 1 RUN: 4d32eebf-1c10-4705-8121-17c12bfccdf0